fUSD/lending_fUSD_20251225
["ID","MTS","AMOUNT","RATE_DAILY","PERIOD"]
[399814453,1766695831817,-195.0,0.00013394,2]
[399814454,1766695831827,-195.0,0.00013394,2]
[399814455,1766695831838,-250.0,0.00013394,2]
[399814456,1766695831848,-156.63631246,0.00014063,2]
[399814457,1766695831858,-162.95,0.00014151,2]
[399814458,1766695831869,-1821.820218,0.00014705,2]
[399814459,1766695831879,-1680.0,0.00014733,2]
[399814460,1766695831889,-952.0,0.00014779,2]
[399814461,1766695831899,-166.66,0.0001478,2]
[399814462,1766695831908,-166.66,0.00015091,2]
[399814463,1766695831918,-7405.86,0.00015245,2]
[399814464,1766695831929,-1852.42,0.00015286,2]
[399814465,1766695831938,-150.0,0.00015288,2]
[399814467,1766695831949,-150.0,0.00015288,2]
[399814469,1766695831958,-150.0,0.00015288,2]
[399814471,1766695831968,-150.0,0.00015288,2]
[399814473,1766695831978,-150.0,0.00015288,2]
[399814475,1766695831988,-150.0,0.00015288,2]
[399814477,1766695831999,-150.0,0.00015288,2]
[399814478,1766695832008,-150.00000001,0.00015288,2]
[399814480,1766695832018,-150.0,0.00015288,2]
[399814482,1766695832028,-150.0,0.00015288,2]
[399814484,1766695832038,-150.0,0.00015288,2]
[399814486,1766695832048,-150.0,0.00015288,2]
[399814488,1766695832059,-150.0,0.00015288,2]
[399814490,1766695832068,-1600.0,0.00015318,2]
[399814493,1766695832078,-4525.96,0.00015318,2]
[399814496,1766695832089,-200.0,0.00015341,2]
[399814497,1766695832099,-166.66,0.00015402,2]
[399814499,1766695832109,-500.0,0.00015479,2]
[399814501,1766695832119,-150.0,0.00015571,2]
[399814504,1766695832129,-150.0,0.00015571,2]
[399814506,1766695832138,-155.32,0.0001565,2]
[399814508,1766695832152,-151.0,0.00015698,2]
[399814510,1766695832162,-150.0,0.00015712,2]
[399814512,1766695832171,-166.66,0.00015713,2]
[399814514,1766695832181,-300.0,0.00015744,2]
[399814516,1766695832191,-1500.0,0.00015803,2]
[399814518,1766695832202,-150.0,0.00015854,2]
[399814520,1766695832212,-150.0,0.00015854,2]
[399814522,1766695832224,-150.0,0.00015854,2]
[399814524,1766695832234,-500.0,0.00015854,2]
[399814526,1766695832243,-151.0,0.0001589,2]
[399814528,1766695832253,-151.0,0.0001589,2]
[399814529,1766695832263,-151.0,0.0001589,2]
[399814531,1766695832274,-207.4,0.0001589,2]
[399814534,1766695832284,-151.0,0.0001589,2]
[399814535,1766695832293,-151.0,0.0001589,2]
[399814537,1766695832303,-151.0,0.0001589,2]
[399814539,1766695832314,-151.0,0.0001589,2]
[399814541,1766695832324,-151.0,0.0001589,2]
[399814544,1766695832334,-151.0,0.0001589,2]
[399814546,1766695832345,-151.0,0.0001589,2]
[399814547,1766695832355,-151.0,0.0001589,2]
[399814549,1766695832365,-1000.0,0.00015899,2]
[399814551,1766695832374,-22689.7818,0.000159,2]
[399814553,1766695832384,-253.84521103,0.00015999,2]
[399814555,1766695832397,-166.66,0.00016025,2]
[399814557,1766695832408,-156.63631246,0.00016049,2]
[399814559,1766695832418,-309.46072033,0.00016119,2]
[399814561,1766695832428,-150.0,0.00016137,2]
[399814563,1766695832438,-150.0,0.00016137,2]
[399814565,1766695832448,-150.0,0.00016137,2]
[399814567,1766695832459,-150.0,0.00016137,2]
[399814569,1766695832468,-150.0,0.00016137,2]
[399814571,1766695832478,-203.76,0.00016149,2]
[399814573,1766695832488,-578.20924308,0.00016149,2]
[399814575,1766695832498,-311.64066109,0.00016149,2]
[399814576,1766695832508,-250.0,0.00016149,2]
[399814578,1766695832518,-250.0,0.00016149,2]
[399814580,1766695832528,-250.0,0.00016149,2]
[399814582,1766695832538,-200.0,0.00016149,2]
[399814584,1766695832548,-250.0,0.00016149,2]
[399814586,1766695832559,-574.12855637,0.00016149,2]
[399814588,1766695832568,-207.4,0.00016149,2]
[399814590,1766695832578,-260.99352058,0.00016149,2]
[399814592,1766695832588,-215.0738,0.00016149,2]
[399814594,1766695832598,-223.0315306,0.00016149,2]
[399814602,1766695832666,-231.28369723,0.00016149,2]
[399814603,1766695832676,-500.0,0.00016149,2]
[399814605,1766695832686,-500.0,0.00016149,2]
[399814607,1766695832696,-239.84119403,0.00016149,2]
[399814608,1766695832706,-500.0,0.00016149,2]
[399814609,1766695832716,-500.0,0.00016149,2]
[399814610,1766695832726,-248.71531821,0.00016149,2]
[399814611,1766695832736,-500.0,0.00016149,2]
[399814612,1766695832746,-500.0,0.00016149,2]
[399814613,1766695832756,-257.91778498,0.00016149,2]
[399814614,1766695832766,-500.0,0.00016149,2]
[399814615,1766695832776,-500.0,0.00016149,2]
[399814616,1766695832786,-267.46074303,0.00016149,2]
[399814617,1766695832797,-500.0,0.00016149,2]
[399814618,1766695832806,-500.0,0.00016149,2]
[399814619,1766695832816,-500.0,0.00016149,2]
[399814620,1766695832826,-500.0,0.00016149,2]
[399814621,1766695832836,-1500.0,0.00016149,2]
[399814622,1766695832845,-500.0,0.00016149,2]
[399814623,1766695832855,-500.0,0.00016149,2]
[399814624,1766695832865,-1500.0,0.00016149,2]
[399814625,1766695832875,-500.0,0.00016149,2]
[399814626,1766695832884,-500.0,0.00016149,2]
[399814627,1766695832894,-500.0,0.00016149,2]
[399814628,1766695832904,-500.0,0.00016149,2]
[399814629,1766695832914,-1500.0,0.00016149,2]
[399814630,1766695832924,-1500.0,0.00016149,2]
[399814631,1766695832934,-500.0,0.00016149,2]
[399814632,1766695832944,-500.0,0.00016149,2]
[399814633,1766695832954,-500.0,0.00016149,2]
[399814634,1766695832964,-620.0,0.00016149,2]
[399814635,1766695832974,-277.35679052,0.00016149,2]
[399814636,1766695832984,-500.0,0.00016149,2]
[399814637,1766695832994,-1500.0,0.00016149,2]
[399814638,1766695833004,-250.0,0.00016149,2]
[399814639,1766695833014,-1500.0,0.00016149,2]
[399814640,1766695833024,-250.0,0.00016149,2]
[399814641,1766695833033,-1051.9805281,0.00016149,2]
[399814642,1766695833044,-250.0,0.00016149,2]
[399814643,1766695833053,-250.0,0.00016149,2]
[399814644,1766695833063,-250.0,0.00016149,2]
[399814645,1766695833073,-250.0,0.00016149,2]
[399814646,1766695833082,-250.0,0.00016149,2]
[399814647,1766695833093,-250.0,0.00016149,2]
[399814648,1766695833102,-250.0,0.00016149,2]
[399814649,1766695833112,-250.0,0.00016149,2]
[399814650,1766695833122,-250.0,0.00016149,2]
[399814651,1766695833132,-151.0,0.00016149,2]
[399814652,1766695833145,-322.6107,0.00016149,2]
[399814653,1766695833155,-170.79057394,0.00016182,2]
[399814654,1766695833165,-347.41343856,0.00016182,2]
[399814655,1766695833175,-500.0,0.00016183,2]
[399814656,1766695833185,-500.0,0.00016183,2]
[399814657,1766695833194,-500.0,0.00016183,2]
[399814658,1766695833204,-500.56420784,0.00016183,2]
[399814659,1766695833214,-500.0,0.00016183,2]
[399814660,1766695833224,-515.54072242,0.00016183,2]
[399814661,1766695833234,-500.0,0.00016183,2]
[399814662,1766695833244,-500.19210667,0.00016183,2]
[399814663,1766695833253,-500.27931325,0.00016183,2]
[399814664,1766695833263,-500.0,0.00016183,2]
[399814665,1766695833273,-500.0,0.00016183,2]
[399814666,1766695833283,-500.0,0.00016183,2]
[399814667,1766695833293,-500.0,0.00016183,2]
[399814668,1766695833303,-500.0,0.00016183,2]
[399814669,1766695833314,-500.47443561,0.00016183,2]
[399814670,1766695833324,-500.0,0.00016183,2]
[399814671,1766695833335,-168.29544961,0.00016183,2]
[399814672,1766695833345,-160.28775802,0.00016183,2]
[399814673,1766695833355,-500.27358903,0.00016183,2]
[399814674,1766695833365,-160.28551418,0.00016183,2]
[399814675,1766695833375,-160.2829779,0.00016183,2]
[399814676,1766695833386,-206.73807968,0.00016183,2]
[399814677,1766695833397,-500.0,0.00016183,2]
[399814678,1766695833407,-500.0,0.00016183,2]
[399814679,1766695833417,-330.95210177,0.00016183,2]
[399814680,1766695833426,-590.45626287,0.00016183,2]
[399814681,1766695833436,-160.67148555,0.00016183,2]
[399814682,1766695833447,-500.0,0.00016183,2]
[399814683,1766695833457,-500.0,0.00016183,2]
[399814684,1766695833467,-500.0,0.00016183,2]
[399814685,1766695833477,-500.88574741,0.00016183,2]
[399814686,1766695833487,-500.0,0.00016183,2]
[399814687,1766695833497,-160.176,0.00016183,2]
[399814688,1766695833507,-500.0,0.00016183,2]
[399814689,1766695833517,-160.28765505,0.00016183,2]
[399814690,1766695833528,-500.19412823,0.00016183,2]
[399814691,1766695833538,-160.34028042,0.00016183,2]
[399814692,1766695833548,-500.0,0.00016183,2]
[399814693,1766695833558,-230.84233683,0.00016183,2]
[399814694,1766695833568,-500.0,0.00016183,2]
[399814695,1766695833579,-500.0,0.00016183,2]
[399814696,1766695833589,-333.70058283,0.00016183,2]
[399814697,1766695833599,-500.0,0.00016183,2]
[399814698,1766695833609,-500.0,0.00016183,2]
[399814699,1766695833619,-1000.0,0.000162,2]
[399814700,1766695833630,-2351.0,0.00016206,2]
[399814701,1766695833641,-166.66,0.00016336,2]
[399814702,1766695833651,-150.0,0.0001642,2]
[399814703,1766695833662,-150.0,0.0001642,2]
[399814704,1766695833671,-150.0,0.0001642,2]
[399814705,1766695833681,-342.0,0.00016429,2]
[399814706,1766695833691,-1000.0,0.00016449,2]
[399814707,1766695833702,-1240.0,0.00016483,2]
[399814708,1766695833711,-1240.0,0.00016494,2]
[399814709,1766695833721,-342.0,0.00016499,2]
[399814710,1766695833730,-1240.0,0.00016505,2]
[399814711,1766695833740,-150.0,0.00016562,2]
[399814712,1766695833750,-1240.0,0.0001661,2]
[399814713,1766695833759,-1240.0,0.00016656,2]
[399814714,1766695833769,-3452.29209939,0.0001666,2]
[399814715,1766695833779,-595.37131296,0.00016697,2]
[399814716,1766695833789,-150.0,0.00016703,2]
[399814717,1766695833798,-150.0,0.00016703,2]
[399814718,1766695833808,-160.79787959,0.00016727,2]
[399814719,1766695833818,-1102.0,0.0001673,2]
[399814720,1766695833828,-1000.0,0.00016731,2]
[399814721,1766695833838,-150.0,0.00016743,2]
[399814722,1766695833848,-150.0,0.00016744,2]
[399814723,1766695833858,-300.0,0.00016748,2]
[399814724,1766695833868,-1000.0,0.00016754,2]
[399814725,1766695833878,-150.0,0.00016775,2]
[399814726,1766695833889,-1000.0,0.00016784,2]
[399814727,1766695833898,-150.0,0.00016789,2]
[399814728,1766695833908,-1000.0,0.00016791,2]
[399814729,1766695833918,-1000.0,0.00016793,2]
[399814730,1766695833928,-1000.0,0.00016797,2]
[399814731,1766695833938,-2500.0,0.000168,2]
[399814732,1766695833947,-174.21218051,0.000168,2]
[399814733,1766695833957,-240.91917039,0.000168,2]
[399814734,1766695833967,-2395.0778851,0.000168,2]
[399814735,1766695833977,-150.0,0.00016801,2]
[399814736,1766695833987,-283.0,0.00016802,2]
[399814737,1766695833996,-1000.0,0.00016806,2]
[399814738,1766695834006,-1000.0,0.00016806,2]
[399814739,1766695834016,-342.0,0.00016827,2]
[399814740,1766695834026,-1000.0,0.00016828,2]
[399814741,1766695834036,-300.0,0.0001683,2]
[399814742,1766695834046,-1353.557,0.00016836,2]
[399814743,1766695834056,-176.381,0.00016836,2]
[399814744,1766695834066,-1000.0,0.00016837,2]
[399814745,1766695834076,-1000.0,0.00016844,2]
[399814746,1766695834086,-300.0,0.00016847,2]
[399814747,1766695834095,-1220.37,0.00016849,2]
[399814748,1766695834105,-1220.37,0.00016849,2]
[399814749,1766695834114,-150.0,0.00016852,2]
[399814750,1766695834123,-533.6247047,0.00016857,2]
[399814751,1766695834133,-150.0,0.0001686,2]
[399814752,1766695834145,-300.0,0.00016861,2]
[399814753,1766695834155,-188.0,0.00016862,2]
[399814754,1766695834165,-200.0,0.00016864,2]
[399814755,1766695834175,-777.71620296,0.00016866,2]
[399814756,1766695834191,-222.28379704,0.00016866,2]
[399814757,1766695834202,-1000.0,0.00016867,2]
[399814758,1766695834212,-964.00244786,0.00016869,2]
[399814759,1766695834225,-35.99755214,0.00016869,2]
[399814760,1766695834235,-963.67927041,0.00016869,2]
[399814761,1766695834255,-36.32072959,0.00016869,2]
[399814762,1766695834265,-248.45090041,0.00016871,2]
[399814763,1766695834290,-285.17380429,0.00016871,2]
[399814764,1766695834301,-1000.0,0.00016884,2]
[399814765,1766695834311,-533.6247047,0.00016886,2]
[399814766,1766695834320,-407.10149101,0.00016888,2]
[399814767,1766695834332,-592.89850899,0.00016888,2]
[399814768,1766695834342,-150.0,0.0001689,2]
[399814769,1766695834352,-271.12694109,0.00016895,2]
[399814770,1766695834400,-500.0,0.00015853,2]
[399814771,1766695834410,-728.87305891,0.00016895,2]
[399814772,1766695834420,-151.0,0.00016897,2]
[399814773,1766695834430,-150.0,0.00016899,2]
[399814774,1766695834440,-638.67,0.00016899,2]
[399814775,1766695834450,-638.67,0.00016899,2]
[399814776,1766695834460,-638.67,0.00016899,2]
[399814777,1766695834469,-638.67,0.00016899,2]
[399814778,1766695834479,-1000.0,0.000169,2]
[399814779,1766695834489,-1721.79954438,0.000169,2]
[399814780,1766695834501,-4848.56891691,0.000169,2]
[399814781,1766695834513,-335.26580545,0.000169,2]
[399814785,1766695837807,-500.0,0.00015853,2]
[399814786,1766695837817,-544.58179129,0.00015853,2]
[399814787,1766695837827,-151.0,0.0001613,2]
[399814788,1766695837838,-500.0,0.00016438,2]
[399814789,1766695837849,-500.0,0.00016438,2]
[399814790,1766695837859,-500.0,0.00016438,2]
[399814791,1766695837870,-500.0,0.00016438,2]
[399814792,1766695837880,-500.0,0.00016438,2]
[399814793,1766695837890,-500.0,0.00016438,2]
[399814794,1766695837901,-500.0,0.00016438,2]
[399814795,1766695837911,-416.9545998,0.00016438,2]
[399814796,1766695837922,-500.0,0.00016438,2]
[399814797,1766695837933,-500.0,0.00016438,2]
[399814798,1766695837943,-500.0,0.00016438,2]
[399814799,1766695837953,-500.0,0.00016438,2]
[399814800,1766695837963,-500.0,0.00016438,2]
[399814801,1766695837974,-4321.93054212,0.00016747,2]
[399814802,1766695837984,-2395.07788502,0.00016811,2]
[399814803,1766695837995,-2395.07788502,0.00016822,2]
[399814804,1766695838006,-1352.34517479,0.000169,2]
[399814805,1766695838019,-593.27536952,0.000169,2]
[399814807,1766695838054,-624.134,0.000169,2]
[399814809,1766695838095,-356.0188694,0.000169,2]
[399814816,1766695838201,-168.59231955,0.000169,2]
[399814818,1766695838212,-918.28741975,0.000169,2]
[399814820,1766695839833,-4321.9305421,0.00016764,2]
[399814821,1766695839843,-52999.70005236,0.000169,2]
[399814822,1766695839855,-443.58598797,0.000169,2]
[399814823,1766695839868,-500.0,0.000169,2]
[399814824,1766695839880,-2732.7300008,0.000169,2]
[399814825,1766695839897,-448.65345497,0.000169,2]
[399814826,1766695839910,-394.95440656,0.000169,2]
[399814827,1766695839923,-1166.77363043,0.000169,2]
[399814828,1766695839936,-477.92241869,0.000169,2]
[399814829,1766695839972,-1932.73780049,0.000169,2]
[399814830,1766695839985,-959.37255751,0.000169,2]
[399814831,1766695839996,-801.04957216,0.000169,2]
[399814832,1766695840008,-1588.82115271,0.000169,2]
[399814833,1766695840020,-709879.53337538,0.000169,2]
[399814834,1766695840033,-445.1252,0.000169,2]
[399814835,1766695840045,-474.61882555,0.000169,2]
[399814836,1766695840057,-801.50537532,0.000169,2]
[399814837,1766695840088,-386.49005528,0.000169,2]
[399814838,1766695840100,-222648.13871407,0.000169,2]
[399814839,1766695840111,-533.6247047,0.000169,2]
[399814840,1766695840121,-4210.01963503,0.000169,2]
[399814841,1766695840131,-2450.91248169,0.000169,2]
[399814842,1766695840142,-1926.43051864,0.000169,3]
[399814843,1766695840156,-1547.50463937,0.000169,2]
[399814844,1766695840166,-8498.0,0.000169,2]
[399814845,1766695840176,-150.0,0.00016904,2]
[399814846,1766695840188,-150.0,0.00016913,2]
[399814847,1766695840199,-150.0,0.00016913,2]
[399814848,1766695840209,-150.0,0.00016916,2]
[399814849,1766695840220,-1000.0,0.00016919,2]
[399814851,1766695840231,-150.0,0.0001692,2]
[399814853,1766695840240,-150.0,0.00016932,2]
[399814854,1766695840250,-1000.0,0.00016932,2]
[399814855,1766695840260,-1000.0,0.00016934,2]
[399814856,1766695840270,-1135.94296454,0.00016944,2]
[399814857,1766695840281,-342.0,0.00016948,2]
[399814858,1766695840291,-1000.0,0.0001695,2]
[399814859,1766695840300,-150.0,0.00016958,2]
[399814860,1766695840310,-1000.0,0.00016959,2]
[399814861,1766695840321,-287.4865066,0.00016963,2]
[399814862,1766695840331,-908.68741303,0.0001697,2]
[399814863,1766695840340,-1000.0,0.00016971,2]
[399814864,1766695840350,-150.0,0.00016972,2]
[399814865,1766695840360,-500.0,0.00016973,2]
[399814866,1766695840371,-150.0,0.00016973,2]
[399814867,1766695840382,-150.0,0.00016977,2]
[399814868,1766695840392,-638.67,0.00016986,2]
[399814869,1766695840403,-52287.96,0.00016986,2]
[399814870,1766695840414,-150.0,0.00016986,2]
[399814871,1766695840427,-150.0,0.00016986,2]
[399814872,1766695840437,-150.0,0.00016986,2]
[399814873,1766695840447,-150.0,0.00016986,2]
[399814874,1766695840457,-150.0,0.00016986,2]
[399814875,1766695840467,-150.0,0.00016986,2]
[399814876,1766695840477,-150.0,0.00016986,2]
[399814877,1766695840487,-150.0,0.00016986,2]
[399814878,1766695840497,-150.0,0.00016986,2]
[399814879,1766695840507,-150.0,0.00016986,2]
[399814880,1766695840518,-342.0,0.00016991,2]
[399814881,1766695840528,-151.0,0.00016997,2]
[399814882,1766695840539,-53437.5484059,0.00016999,2]
[399814883,1766695840550,-134588.3838117,0.00016999,2]
[399814884,1766695840560,-11060.2559819,0.00016999,2]
[399814885,1766695840571,-300.0,0.00016999,2]
[399814886,1766695840582,-300.0,0.00016999,2]
[399814887,1766695840592,-638.67,0.00016999,2]
[399814888,1766695840602,-638.67,0.00016999,2]
[399814889,1766695840612,-638.67,0.00016999,2]
[399814890,1766695840623,-638.67,0.00016999,2]
[399814891,1766695840633,-638.67,0.00016999,2]
[399814892,1766695840644,-638.67,0.00016999,2]
[399814893,1766695840655,-638.67,0.00016999,2]
[399814894,1766695840666,-638.67,0.00016999,2]
[399814895,1766695840677,-638.67,0.00016999,2]
[399814896,1766695840687,-638.67,0.00016999,2]
[399814897,1766695840698,-638.67,0.00016999,2]
[399814898,1766695840708,-638.67,0.00016999,2]
[399814899,1766695840719,-638.67,0.00016999,2]
[399814900,1766695840730,-638.67,0.00016999,2]
[399814901,1766695840740,-638.67,0.00016999,2]
[399814902,1766695840751,-638.67,0.00016999,2]
[399814903,1766695840761,-638.67,0.00016999,2]
[399814904,1766695840771,-638.67,0.00016999,2]
[399814905,1766695840781,-638.85545808,0.00016999,2]
[399814906,1766695840791,-2666151.67468146,0.00017,2]
[399814907,1766695840815,-402.91413147,0.00017,2]
[399814908,1766695840828,-600.0,0.00017,2]
[399814912,1766695842976,-2395.07788502,0.00016833,2]
[399814913,1766695842987,-211014.57439471,0.00017,2]
[399814914,1766695843034,-15135.09587023,0.00017,2]
[399814915,1766695843090,-1186.55161952,0.00017,2]
[399814916,1766695843103,-26220.84080366,0.00017,2]
[399814917,1766695843115,-7272.30772007,0.00017,2]
[399814918,1766695843128,-300.0,0.00017,2]
[399814919,1766695845807,-4321.9305421,0.00016781,2]
[399814920,1766695845818,-1000.0,0.00016978,2]
[399814921,1766695845828,-1491.83260828,0.00017,2]
[399814922,1766695845839,-344576.15786243,0.00017,2]
[399814923,1766695845852,-1587.635991,0.00017,2]
[399814924,1766695845863,-521.50544742,0.00017,2]
[399814925,1766695845917,-404.73403491,0.00017,2]
[399814926,1766695845974,-540.52,0.00017,2]
[399814927,1766695846034,-4363.76389369,0.00017,2]
[399814930,1766696007240,500.0,0.000119,2]
[399814931,1766696044097,500.0,0.000119,2]
[399814933,1766696128593,500.0,0.000119,2]
[399814939,1766696286470,500.0,0.00032876,120]
[399814940,1766696405742,500.0,0.000119,2]
[399814945,1766696452888,-228.1425854,0.00012448,2]
[399814946,1766696456210,-193.0,0.00012448,2]
[399814947,1766696459012,-353.7132364,0.00012448,2]
[399814948,1766696463916,500.0,0.000119,2]
[399814950,1766696528764,500.0,0.000119,2]
[399814951,1766696645648,500.0,0.000119,2]
[399814953,1766696703348,500.0,0.000119,2]
[399814956,1766696767656,500.0,0.000119,2]
[399814957,1766696887077,500.0,0.000119,2]
[399814959,1766697009411,500.0,0.000119,2]
[399814966,1766697031895,-500.0,0.00012448,2]
[399814967,1766697031905,-164.63807819,0.00012448,2]
[399814968,1766697031917,-835.36192181,0.00012448,2]
[399814969,1766697031927,-356.32177659,0.00012448,2]
[399814970,1766697031937,-195.0,0.00012448,2]
[399814971,1766697031947,-195.0,0.00012448,2]
[399814972,1766697031957,-195.0,0.00012486,2]
[399814973,1766697031967,-1200.0,0.00012993,2]
[399814974,1766697031977,-300.0,0.00012994,2]
[399814975,1766697031987,-300.0,0.00012994,2]
[399814976,1766697031996,-1500.0,0.00012996,2]
[399814977,1766697032006,-2000.0,0.00013544,2]
[399814978,1766697032015,-195.0,0.00013693,2]
[399814979,1766697032024,-195.0,0.00013693,2]
[399814980,1766697032034,-1225.1441782,0.00014092,2]
[399814981,1766697032043,-185.0,0.0001425,2]
[399814982,1766697032053,-306.0,0.0001425,2]
[399814983,1766697032064,-1680.0,0.00014292,2]
[399814984,1766697032074,-999.0,0.00014571,3]
[399814985,1766697032084,-500.0,0.00014632,2]
[399814986,1766697032095,-150.0,0.00014678,2]
[399814987,1766697032105,-500.0,0.00014712,2]
[399814988,1766697032115,-150.0,0.00015288,2]
[399814989,1766697032125,-150.0,0.00015288,2]
[399814990,1766697032134,-150.0,0.00015288,2]
[399814991,1766697032144,-150.0,0.00015288,2]
[399814992,1766697032154,-150.0,0.00015288,2]
[399814993,1766697032164,-150.0,0.00015288,2]
[399814994,1766697032173,-150.0,0.00015288,2]
[399814995,1766697032183,-150.0,0.00015288,2]
[399814997,1766697032192,-150.0,0.00015288,2]
[399814999,1766697032202,-150.0,0.00015288,2]
[399815000,1766697032212,-3591.19410853,0.0001559,2]
[399815001,1766697032221,-600.04737321,0.0001559,2]
[399815002,1766697032230,-346.14830517,0.00015596,2]
[399815003,1766697032240,-151.0,0.00015603,2]
[399815004,1766697032249,-300.0,0.00015605,2]
[399815005,1766697032259,-243.189407,0.00015605,2]
[399815006,1766697032269,-171.62019903,0.00015605,2]
[399815007,1766697032279,-170.23258489,0.00015605,2]
[399815008,1766697032290,-32618.16235134,0.00015606,2]
[399815009,1766697032302,-2286.90336051,0.00015606,2]
[399815010,1766697032321,-3518.22315239,0.00015606,2]
[399815011,1766697032340,-2127.37987507,0.00015606,2]
[399815012,1766697032353,-3592.19999998,0.00015606,2]
[399815013,1766697032375,-10957.99854066,0.00015606,2]
[399815014,1766697032386,-879.45743612,0.00015606,2]
[399815015,1766697032396,-287.57868463,0.00015606,2]
[399815044,1766697037995,-3379.8,0.00015606,2]
[399815045,1766697038008,-187022.01828163,0.00015606,2]
[399815046,1766697038021,-5122.48611647,0.00015606,2]
[399815047,1766697038035,-2724.7365,0.00015606,2]
[399815048,1766697038047,-1122.70891671,0.00015606,2]
[399815049,1766697038079,-647.25936277,0.00015606,2]
[399815050,1766697038091,-6632.64964122,0.00015606,2]
[399815051,1766697038103,-135285.62387498,0.00015606,2]
[399815052,1766697038128,-162344.36895233,0.00015606,2]
[399815053,1766697038140,-11661.51930947,0.00015606,2]
[399815056,1766697038203,-2433.59788731,0.00015606,2]
[399815062,1766697038274,-2400.58770402,0.00015606,2]
[399815204,1766697040022,-2243.95,0.00015606,2]
[399815205,1766697040036,-3761.56668137,0.00015606,2]
[399815206,1766697040186,-5863.50612559,0.00015606,2]
[399815207,1766697040199,-15918.08659907,0.00015606,2]
[399815208,1766697040240,-395167.63064636,0.00015606,2]
[399815209,1766697040250,-151.0,0.00015692,2]
[399815210,1766697040262,-2500.0,0.000157,2]
[399815211,1766697040272,-151.0,0.00015703,2]
[399815212,1766697040283,-1130.0,0.00015722,2]
[399815213,1766697040293,-207.4,0.0001573,2]
[399815214,1766697040304,-151.0,0.0001573,2]
[399815215,1766697040314,-151.0,0.0001573,2]
[399815216,1766697040325,-151.0,0.0001573,2]
[399815217,1766697040335,-151.0,0.0001573,2]
[399815218,1766697040345,-151.0,0.0001573,2]
[399815219,1766697040355,-151.0,0.0001573,2]
[399815220,1766697040364,-151.0,0.0001573,2]
[399815221,1766697040374,-151.0,0.0001573,2]
[399815222,1766697040384,-151.0,0.0001573,2]
[399815223,1766697040394,-151.0,0.0001573,2]
[399815224,1766697040404,-151.0,0.0001573,2]
[399815225,1766697040414,-3591.19410849,0.00015736,2]
[399815226,1766697040425,-164.93940703,0.00015739,2]
[399815227,1766697040436,-9451.92145267,0.00015768,2]
[399815228,1766697040446,-150.0,0.00015769,2]
[399815229,1766697040461,-600.04737314,0.00015777,2]
[399815230,1766697040471,-2169.765,0.00015799,2]
[399815231,1766697040481,-166.895,0.00015799,2]
[399815232,1766697040491,-532.23,0.00015799,2]
[399815233,1766697040502,-532.23,0.00015799,2]
[399815234,1766697040512,-532.23,0.00015799,2]
[399815235,1766697040522,-532.23,0.00015799,2]
[399815236,1766697040533,-9107.0,0.000158,2]
[399815237,1766697040543,-3591.19410849,0.00015881,2]
[399815238,1766697040553,-9451.92145263,0.00015894,2]
[399815239,1766697040563,-600.04737314,0.00015964,2]
[399815241,1766697040573,-9451.92145263,0.0001602,2]
[399815243,1766697040583,-3591.19410849,0.00016027,2]
[399815245,1766697040593,-164.93940702,0.00016029,2]
[399815247,1766697040603,-1136.0,0.00016054,2]
[399815248,1766697040614,-9451.92145263,0.00016145,2]